{"text_format":"1","workbook":"xlsx","n_sheets":2,"sheets":["PAPELERIA","LIMPIEZA"],"not_rendered":{"charts":0,"images":1,"macros":1,"external_links":0,"defined_names":6,"comments":0,"pivot_tables":0},"unopened":[],"bounds":{"document_bytes":16777216,"sheet_cells":100000,"rows_first":2000,"rows_last":500,"rows_between":2000,"halvings":0,"cell_chars":16384,"cell_head_chars":4096},"cells_cut":0,"cells_raw":0,"read":"whole","date_system":"1900"}

{"sheet":"PAPELERIA","index":0,"n_rows":581,"n_cols":5,"rows_kept":581,"cut":false,"hidden":false,"merged":[[0,0,0,4]]}
["COTIZADOR AGE PAPELERIA\nTOYS 2 TEACH S.A. DE C.V."]
["CLIENTE",null,null,"CONTACTO"]
["Mail:",null,null,"Teléfono"]
["ALCALDIA"]
[]
[]
["CLAVE","PRODUCTO","PRECIO\nSIN IVA","NO. DE PIEZAS","IMPORTE"]
["AR-272232","CONFETI MULTICOLOR 100 GR",29,56,{"$f":"IFERROR(D8*C8,0)","v":1624}]
["ART-0007558","BORRADOR MAGNETICO P/PIZARRON 1PZ",58,null,{"$f":"IFERROR(D9*C9,0)","v":0}]
["ART-017","CINTA SCOTCH DESPACHADOR 1.9X30M 1 ROLLO",57,null,0]
["ART-023","CINTA SCOTCH TRANSP 1.9 X33 M 1 ROLLO",42,null,0]
["ART-13397002","PINTURA ACRÍLICA POLITEC BLANCO 940 ML",404,null,0]
["ART-13397003","PINTURA ACRÍLICA POLITEC AMARILLO 940 ML",404,null,0]
["ART-13397006","PINTURA ACRÍLICA POLITEC VDE CLARO 940ML",404,null,0]
["ART-13397007","PINTURA ACRÍLICA POLITEC NEGRO 940 ML",404,null,0]
["ART-13397008","PINTURA ACRÍLICA POLITEC CAFÉ 940 ML",404,null,0]
["ART-13397010","PINTURA ACRÍLICA POLITEC ROJO 940 ML",404,null,0]
["ART-13397011","PINTURA ACRÍLICA POLITEC CELESTE 940 ML",404,null,0]
["ART-13397014","PINTURA ACRÍLICA POLITEC  MORADO 940ML",404,null,0]
["ART-13458003","PINTURA ACRILICA POLITEC 500ML AZUL ULTR",210,null,0]
["ART-13458004","PINTURA ACRILICA POLITEC 500ML BCO TITAN",210,null,0]
["ART-13458006","PINTURA ACRILICA POLITEC 500ML MORADO",210,null,0]
["ART-13458008","PINTURA ACRILICA POLITEC L300 500ML ROJO",210,null,0]
["ART-13458012","PINTURA ACRILICA POLITEC 500ML VDE CLARO",210,null,0]
["ART-13458014","PINTURA ACRILICA POLITEC 500ML CAFÉ",210,null,0]
["ART-13458016","PINTURA ACRILICA POLITEC 500ML AZUL CELE",210,null,0]
["ART-13458018","PINTURA ACRILICA POLITEC 500ML MAGENTA",210,null,0]
["ART-13458019","PINTURA ACRILICA POLITEC 500ML AMAR CLAR",210,null,0]
["ART-13458033","PINTURA ACRILICA POLITEC 500ML NEGRO",210,null,0]
["ART-13467001","FOMI 2MM T/CARTA AMR MANGO/GHUEVO 1PZ",9,null,0]
["ART-13467002","FOMI 2MM T/CARTA AZUL CIELO 1PZ",9,null,0]
["ART-13467003","FOMI 2MM T/CARTA AZUL REY 1PZ",9,null,0]
["ART-13467004","FOMI 2MM T/CARTA BLANCO 1PZ",9,null,0]
["ART-13467005","FOMI 2MM T/CARTA CAFÉ OBSCURO 1PZ",9,null,0]
["ART-13467006","FOMI 2MM T/CARTA COLOR CARNE 1PZ",9,null,0]
["ART-13467007","FOMI 2MM T/CARTA MORADO 1PZ",9,null,0]
["ART-13467008","FOMI 2MM T/CARTA NEGRO 1PZ",9,null,0]
["ART-13467009","FOMI 2MM T/CARTA ROJO 1PZ",9,null,0]
["ART-13467010","FOMI 2MM T/CARTA ROSA PASTEL 1PZ",9,null,0]
["ART-13467011","FOMI 2MM T/CARTA VERDE LIMON 1PZ",9,null,0]
["ART-13467012","FOMI 2MM T/CARTA VERDE BANDERA 1PZ",9,null,0]
["ART-13467013","FOMI 2MM T/CARTA NARANJA 1PZ",9,null,0]
["ART-13467014","FOMI 2MM T/CARTA GRIS CLARO 1PZ",9,null,0]
["ART-13467016","FOMI 2MM T/CARTA AMARILLO CANARIO 1PZ",9,null,0]
["ART-13490001","FOMI 2MM 70x95 CM AMARILLO MANGO 1 PZ",67,null,0]
["ART-13490002","FOMI 2MM 70x95 CM AZUL CIELO 1PZ",67,null,0]
["ART-13490003","FOMI 2MM 70x95 CM AZUL REY 1PZ",67,null,0]
["ART-13490004","FOMI 2MM 70x95 CM BLANCO 1PZ",67,null,0]
["ART-13490005","FOMI 2MM 70x95 CM CAFÉ OBSCURO 1PZ",67,null,0]
["ART-13490006","FOMI 2MM 70x95 CM COLOR CARNE 1PZ",67,null,0]
["ART-13490007","FOMI 2MM 70x95 CM GRIS CLARO 1PZ",67,null,0]
["ART-13490009","FOMI 2MM 70x95 CM MORADO 1PZ",67,null,0]
["ART-13490010","FOMI 2MM 70x95 CM NARANJA 1PZ",67,null,0]
["ART-13490011","FOMI 2MM 70x95 CM NEGRO 1PZ",67,null,0]
["ART-13490012","FOMI 2MM 70x95 CM ROJO 1PZ",67,null,0]
["ART-13490013","FOMI 2MM 70x95 CM ROSA PASTEL 1PZ",67,null,0]
["ART-13490014","FOMI 2MM 70x95 CM VERDE BANDERA 1PZ",67,null,0]
["ART-13490015","FOMI 2MM 70x95 CM VERDE LIMON 1PZ",67,null,0]
["ART-13490016","FOMI 2MM 70x95 CM AMARILLO CLARO 10Z",67,null,0]
["ART-13520003","PINTURA ACRÍLICA POLITEC 250ML AZUL ULTR",115,null,0]
["ART-13520004","PINTURA ACRÍLICA POLITEC L300 250 ML BLA",115,null,0]
["ART-13520006","PINTURA ACRÍLICA POLITEC 250ML OCRE",115,null,0]
["ART-13520007","PINTURA ACRÍLICA POLITEC 250 ML ROJO",115,null,0]
["ART-13520008","PINTURA ACRÍLICA POLITEC 250ML VDE CLARO",115,null,0]
["ART-13520009","PINTURA ACRÍLICA POLITEC 250ML NGO INTEN",115,null,0]
["ART-13520011","PINTURA ACRÍLICA POLITEC 250ML AZUL CELE",115,null,0]
["ART-13520013","PINTURA ACRÍLICA POLITEC 250ML CAFÉ",115,null,0]
["ART-13520019","PINTURA ACRÍLICA POLITEC 250ML ROSA CLAR",115,null,0]
["ART-13520021","PINTURA ACRÍLICA POLITEC 250ML AMAR CLAR",115,null,0]
["ART-13520027","PINTURA ACRÍLICA POLITEC L300 250 ML MOR",115,null,0]
["ART-13520028","PINTURA ACRÍLICA POLITEC 250ML NJA CLARO",115,null,0]
["ART-13520031","PINTURA ACRÍLICA POLITEC 250ML ROSA MEX",115,null,0]
["ART-13520034","PINTURA ACRÍLICA POLITEC 250ML VDE OBSC",115,null,{"$f":"IFERROR(D73*C73,0)","v":0}]
["ART-1408","PASTA PARA MODELAR 500 GRS. BLANCA",107,null,0]
["ART-1409","PASTA PARA MODELAR 500 GRS. TERRACOTA",122,null,0]
["ART-14922007","CARTULINA AMERICA 70X100CM LILA",48,null,0]
["ART-14923001","CARTULINA AMERICA 70X100CM VERDE CLARO",59,null,0]
["ART-14923003","CARTULINA AMERICA 70X100CM ROSA CLARO",59,null,0]
["ART-14923005","CARTULINA AMERICA 70X100CM NEGRO",59,null,0]
["ART-14923006","CARTULINA AMERICA 70X100CM AMAR CANARIO",59,null,0]
["ART-14923008","CARTULINA AMERICA 70X100CM VERDE BANDERA",59,null,0]
["ART-14923011","CARTULINA AMERICA 70X100CM AZUL CLARO",59,null,0]
["ART-14923012","CARTULINA AMERICA 70X100CM MANDARINA",59,null,0]
["ART-14923015","CARTULINA AMERICA 70X100CM ROJO BANDERA",59,null,0]
["ART-14923017","CARTULINA AMERICA 70X100CM BLANCA",59,null,0]
["ART-14962001","PAPEL AMERICA ROLLO 75GR 5M AMAR CANARI",89,null,0]
["ART-14962004","PAPEL AMERICA ROLLO 75GR 5M VERDE CLARO",89,null,0]
["ART-14962006","PAPEL AMERICA ROLLO 75GR 5M ROJO OBSC",89,null,0]
["ART-14962010","PAPEL AMERICA ROLLO 75GR 5M VIOLETA",89,null,0]
["ART-14962012","PAPEL AMERICA ROLLO 75GR 5M VDE BANDERA",89,null,0]
["ART-14962013","PAPEL AMERICA ROLLO 75GR 5M BLANCO",89,null,0]
["ART-14962016","PAPEL AMERICA ROLLO 75GR 5M ROSA CLARO",89,null,0]
["ART-14962017","PAPEL AMERICA ROLLO 75GR 5M AZUL MEDIO",89,null,0]
["ART-14962018","PAPEL AMERICA ROLLO 75GR  5M AZUL REY",89,null,0]
["ART-14962021","PAPEL AMERICA ROLLO 75GR 5M NARANJA",89,null,0]
["ART-204868","PINTURA DIGITAL 35ML C/5 PZ DIF. COLORES",161,null,0]
["ART-209175","ESTUCHE P/MODELAR CUBETA C/14PZS",223,null,0]
["ART-209177","MOLDES FIGURAS GEOMETRICAS BOLSA C/8PZ",65,null,0]
["ART-209597","PINTURA INFANTIL GLITTER C/6 BOTES",36,null,0]
["ART-21001","PLASTILINA JOVI 71 150G AMARILLO",48,null,0]
["ART-21002","PLASTILINA JOVI 71 150G AZUL",48,null,0]
["ART-21003","PLASTILINA JOVI 71 150G AZUL CLARO",48,null,0]
["ART-21004","PLASTILINA JOVI 71 150G BLANCO",48,null,0]
["ART-21005","PLASTILINA JOVI 71 150G CAFÉ",48,null,0]
["ART-21006","PLASTILINA JOVI 71 150G NARANJA",48,null,0]
["ART-21007","PLASTILINA JOVI 71 150G NEGRO",48,null,0]
["ART-21008","PLASTILINA JOVI 71 150G ROJO",48,null,0]
["ART-21009","PLASTILINA JOVI 71 150G VERDE",48,null,0]
["ART-21010","PLASTILINA JOVI 71 150G FIUSHA",48,null,0]
["ART-21011","PLASTILINA JOVI 71 150G CARNE",48,null,0]
["ART-21012","PLASTILINA JOVI 71 150G LILA",48,null,0]
["ART-213746","RESTIRADOR ESCOLAR 90X60 AGLOMER C/BANCO",5309,null,0]
["ART-214219","MASA SUAVE PATMACHE 170G 1PZ",42,null,0]
["ART-214235","PLUMIN ESCOLAR 1612 DELGADOS C/12",111,null,0]
["ART-214236","PLUMON ESCOLAR C/12  MAXI COLORES SURT",171,null,0]
["ART-217086","PASTA PARA MODELAR 1 KG. BLANCA",210,null,0]
["ART-217087","PASTA PARA MODELAR 1 KG TERRACOTA",237,null,0]
["ART-223628","RESTIRADOR EN MELAMINA 120X80 CM",6033,null,0]
["ART-224877","ACUARELA 22MM 18 PASTILLAS SURTIDAS",168,null,0]
["ART-224879","PINCEL ESCOLAR MANGO PLAST. BL 2PZ",111,null,0]
["ART-224880","PINCEL ESCOLAR REDON VAR # SINT BL C/5PZ",114,null,0]
["ART-224883","PASTA PARA MODELAR 250GRS. BLANCA",57,null,0]
["ART-224885","PASTA PARA MODELAR 250 GRS. TERRACOTA",57,null,0]
["ART-224887","ACUARELA 30MM 22 PASTILLAS SURTIDAS",257,null,0]
["ART-224995","MASA SUAVE PATMACHE 680G 1PZ",282,null,0]
["ART-224996","MASA SUAVE BLAND. C/3PZ COL VARIOS MATE",70,null,0]
["ART-224998","PALETA JOVI P/MODELAR BL C/5",79,null,0]
["ART-227609001","PORTACLIPS HONOR ST003",45,null,0]
["ART-230965","CAJA CON 100 GISES DE COLORES",315,null,0]
["ART-241019","MASA SUAVE BLANDIVER VARIOS COL. 10 PZ.",342,null,0]
["ART-242598","TIJERAS MAPED ADVANCE GREEN 18 CM",99,null,0]
["ART-248364","CESTO PARA BASURA SABLÓN 8095 17L",415,null,0]
["ART-266831","MICA PROTECT JANEL KRYST 25X33CM PQT C/5",83,null,0]
["ART-267755","ESPONJAS DOARTS A105052 BLISTER 3 PZ",52,null,0]
["ART-285149","BARRA PLASTILINA COL DIV PASTEL 50GRS 6P",147,null,0]
["ART-291578","PINCEL 4 PUNTAS DIFERENTES",116,null,0]
["ART-309459","PAPEL ECOBOND T/C 70 GR CAJA",1292,null,{"$f":"IFERROR(D137*C137,0)","v":0}]
["ART-326814001","PINTURA TEMPERA LIQUIDA 250ML VIOLETA PZ",92,null,0]
["ART-326814002","PINTURA TEMPERA LIQUIDA 250ML AMARILLO",92,null,0]
["ART-326814004","PINTURA TEMPERA LIQUIDA 250ML BLANCO",92,null,0]
["ART-326814005","PINTURA TEMPERA LIQUIDA 250ML MAGENTA",92,null,0]
["ART-326814006","PINTURA TEMPERA LIQUIDA 250ML MARRON",92,null,0]
["ART-326814007","PINTURA TEMPERA LIQUIDA 250ML NARANJA",92,null,0]
["ART-326814008","  PINTURA TEMPERA LIQUIDA 250ML NEGRO",92,null,0]
["ART-326814009","PINTURA TEMPERA LIQUIDA 250ML VERDE",92,null,0]
["ART-326814010","PINTURA TEMPERA LIQUIDA 250ML BERMELLON",92,null,0]
["ART-340483","BARRAS SILICON 7MM BOLSAS CON 10 PIEZAS",60,null,0]
["ART-342100","PINTURA FACIAL SET MUNDO MIEDO 8 ML C/3",237,null,0]
["ART-342102","PINTURA FACIAL  SET FANTASIA 8ML C/3",237,null,0]
["ART-342104","PINTURA FACIAL SET MUNDO ANIMAL 8 ML C/3",237,null,0]
["ART-342106","PINTURA FACIAL BARRAS MAQUILLAJE C/10",142,null,0]
["ART-7667","ACUARELA 22MM 24 PASTILLAS SURTIDAS",224,null,0]
["ART-7668","ACUARELA ESCOLAR 12 PASTILLAS",126,null,0]
["ART-800/24","***ACUARELA 22MM 24 PASTILLAS SURTIDAS",224,null,0]
["ART-9520","BANDERITAS PAQUETE 140 PZ",116,null,0]
["PU-00016","ACETATO KRONALINE T/C P/COPIADORA C/100",271.60000000000002,null,0]
["PU-00118","ACUARELA CRAYOLA C/08 *",101.6,null,0]
["PU-00120","ACUARELA CRAYOLA C/16",169.2,null,0]
["PU-00300","PINES ACCO SURTIDOS C/100 P1167 *",86.54,null,0]
["PU-00545","CARGADOR P/PILA RECARGABLE ENERGIZER MAX",696.78,null,0]
["PU-00550","PILA ENERGIZER MAX AA C/4 PZ (21000)",145.72,null,0]
["PU-00551","PILA ENERGIZER MAX AAA C/4PZS",145.72,null,0]
["PU-00620","BLOCK ESTRELLA T/C C-5 80 HOJAS #7",40.159999999999997,null,0]
["PU-00621","BLOCK ESTRELLA T/C C-7 80 HOJAS #8",40.159999999999997,null,0]
["PU-00706","BLOCK ESTRELLA T/C AMARILLO 50 HOJAS #15",77.5,null,0]
["PU-00740","BLOCK TAQUIGRAF ESTRELLA 80 H CORTO #33",22,null,0]
["PU-00741","BLOCK TAQUIGRAFIA ESTRELLA 80H LARGO #35",25.24,null,0]
["PU-01022","BLOCK POST-IT 3M #3301-5AN POP-UP NEON 6",210.22,null,0]
["PU-01140","BLOCK POST-IT 3M NO. 653 38X50MM C/12 AM",212.16,null,0]
["PU-01146","BLOCK POST-IT 3M 7.5X7.5 CM AMARILLO",31.64,null,0]
["PU-01148","BLOCK POST-IT 3M 10X15 AMARI RAY 100 H",83.84,null,0]
["PU-01159","BLOCK POST-IT 3M NEON C/5 7.6x7.6CM",156.68,null,0]
["PU-01160","BLOCK POST IT 3M CUBO PASTE 7.5x7.5CM",182.1,null,0]
["PU-01173","BLOCK POST-IT JANEL NO.54 3X3 AMARILLO",14.78,null,0]
["PU-01175","BLOCK POST-IT JANEL #54 3X3 CUBO PASTEL",62.08,null,0]
["PU-01176","BLOCK POST-IT JANEL  3X3 CUBO NEON 400H",87.2,null,0]
["PU-01178","BLOCK POST-IT JANEL #53 1.5X2 C/12 AMARI",69.459999999999994,null,0]
["PU-01335","BOLIGRAFO PILOT SUPER GEL 0.7 NEGRO",30.24,null,0]
["PU-01336","BOLIGRAFO PILOT SUPER GEL 0.7 AZUL",30.24,null,0]
["PU-01428","BOLIGRAFO BIC DIAMANTE MEDIANO ROJO PZA",10.36,null,0]
["PU-01436","BOLIGRAFO BIC DIAMANTE FINO ROJO PZA",9.1999999999999993,null,0]
["PU-01441","BOLIGRAFO BIC M-250 MEDIANO AZUL PZA *",7.1,null,0]
["PU-01442","BOLIGRAFO BIC M-250 MEDIANO NEGRO PZA",7.1,null,0]
["PU-01445","BOLIGRAFO BIC F-290 FINO AZUL PZA",8.3800000000000008,null,0]
["PU-01446","BOLIGRAFO BIC F-290 FINO C/12 PZAS. AZUL",78.88,null,0]
["PU-01462","BOLIGRAFO BIC M-250 MEDIANO C/12 PZ AZUL",78.88,null,0]
["PU-01465","BOLIGRAFO BIC M-250 MEDIANO ROJO PZA",7.1,null,0]
["PU-01466","BOLIGRAFO BIC M-250 MEDIANO VERDE PZA",7.1,null,0]
["PU-01467","BOLIGRAFO BIC M-250 MEDIANO C/12 PZS VDE",78.88,null,0]
["PU-01468","BOLIGRAFO BIC F-290 FINO NEGRO PZA",8.3800000000000008,null,0]
["PU-01469","BOLIGRAFO BIC F-290 FINO ROJO PZA",7.1,null,0]
["PU-01714","BOLIGRAFO KILOMETRICO FINO AZUL 1PZ",5.48,null,0]
["PU-01716","BOLIGRAFO KILOMETRICO FINO ROJO C/12",68.16,null,0]
["PU-01748","BOLIGRAFO KILOMETRICO #100 ROJO C/12 MED",65.180000000000007,null,0]
["PU-01763","BOLIGRAFO AZOR PINPOINT FINO AZUL 12 PZ",72.02,null,0]
["PU-01764","BOLIGRAFO AZOR PINPOINT FINO NEGRO 12 PZ",72.02,null,0]
["PU-01765","BOLIGRAFO AZOR PINPOINT FINO ROJO 12 PZ",72.02,null,0]
["PU-01804","BOLIGRAFO KILOMETRICO #100 AZUL C/12 MED",63.08,null,0]
["PU-01837","BORRADOR FIELTRO AMARI C/IMAN 12X4.5 # 7",19.420000000000002,null,0]
["PU-01868","BROCHE ACCO P/ARCHIVO 8 CMS P1580",100.5,null,0]
["PU-01875","BROCHE ACCO AGARRAPAPEL CH 19MM C/12PZ",21.1,null,{"$f":"IFERROR(D201*C201,0)","v":0}]
["PU-01876","BROCHE ACCO AGARRAPAPEL GDE 50MM 12PZ",126.68,null,0]
["PU-01878","BROCHE BARRILITO AGARRAPAPEL MED 32MM 12",55.66,null,0]
["PU-01911","BROCHE AGARRAPAPEL WILSON 50MM C/12PZS",132.6,null,0]
["PU-01942","CAJA ARCHIVO MUERTO T/O 25X35X50 CARTON",56.9,null,0]
["PU-01945","CAJA ARCHIVO MUERTO T/C 25X31X50 CARTON",57.1,null,0]
["PU-02164","CALCULADORA CASIO MX-120",290.06,null,0]
["PU-02345","CARPETA TORRE 1 25MM C/CRISTAL REDON BCA",78.959999999999994,null,0]
["PU-02346","CARPETA TORRE 1 1/2 36MM C/CRISTAL BCA",87.12,null,0]
["PU-02347","CARPETA TORRE 2 50MM C/CRISTAL H RED BCA",111.84,null,0]
["PU-02348","CARPETA TORRE 3 75MM C/CRISTAL BCA",132,null,0]
["PU-02378","CARPETA TORRE 1/2 12MM C/CRISTAL  BCA",75.48,null,0]
["PU-02380","CARPETA TORRE 1 25MM C/CRISTAL H D BCA",107.88,null,0]
["PU-02381","CARPETA TORRE 1 1/2 36MM C/CRISTAL BCA",114,null,0]
["PU-02382","CARPETA TORRE 2 50MM C/CRISTAL H D BCA",124.48,null,0]
["PU-02383","CARPETA TORRE 3 75MM C/CRISTAL H D BCA",187.92,null,0]
["PU-02620","CARTONCILLO 50X70 160 G. AZUL",9.36,null,0]
["PU-02625","CARTONCILLO 50x70 160 GR NEGRO",11.2,null,0]
["PU-02669","CARTULINA OPALINA T/CARTA 225GR C/100 HO",333.6,null,0]
["PU-02672","CARTULINA BRISTOL BLANCA 58 KGS 50X65 CM",8.06,null,0]
["PU-02673","CARTULINA BRISTOL AZUL 48.8 KGS 50X65CMS",10.62,null,0]
["PU-02674","CARTULINA BRISTOL CANARIO 48.8KG 50X65CM",10.62,null,0]
["PU-02676","CARTULINA BRISTOL ROSA 48.8 KGS 50X65CMS",10.62,null,0]
["PU-02677","CARTULINA BRISTOL VDE 48.8 KGS 50X65 CMS",10.62,null,0]
["PU-02688","CARTULINA FLOURECENTE VERDE",12.22,null,0]
["PU-02689","CARTULINA FLOURECENTE AMARILLO LIMON",12.22,null,0]
["PU-02690","CARTULINA FLOURECENTE NARANJA FUEGO",12.22,null,0]
["PU-02691","CARTULINA FLOURECENTE AZUL",12.22,null,0]
["PU-02693","CARTULINA ILUSTRACION 1/2 BLANCA 51X76 *",66.239999999999995,null,0]
["PU-02696","CARTULINA FLUORECENTE ROSA",12.22,null,0]
["PU-02810","CHAROLA MODU SABLON OF DOBLE HUMO 2426HU",458.6,null,0]
["PU-02811","CHAROLA MOD SABLON T/O TRIPLE HUMO",684.32,null,0]
["PU-03157","CINTA TRANSPARENTE LEADER 155T 48MMX150M",73.459999999999994,null,0]
["PU-03160","CINTA CANELA LEADER 156C 48MMX150M *",73.459999999999994,null,0]
["PU-03187","CINTA MASKING TAPE JANEL #110 24MMX50MTS",39.54,null,0]
["PU-03189","CINTA MASKING TAPE JANEL #110 48MMX50MTS",79.58,null,0]
["PU-03190","CINTA MASKING TAPE JANEL #110 12MMX50MTS",20.62,null,0]
["PU-03253","CINTA ADHESIVA JANEL 18x33 DOBLE CAPA",86.12,null,0]
["PU-03329","CINTA MAGICA SCOTCH 810 18 MM X 33 MTS",119.18,null,0]
["PU-03352","CINTA CANELA JANEL No. 156 48x50",23.98,null,0]
["PU-03361","CINTA CANELA SCOTCH 48X50 (360C)",52.78,null,0]
["PU-03366","CINTA TRANSP GDE JANEL #15548 X 150 1PZ",62.4,null,0]
["PU-03595","CINTA ADHESIVA JANEL 12x33 DOBLE CAPA",58.26,null,0]
["PU-03598","CINTA ADHESIVA JANEL #119 1.2x33 TRANSP",7.6,null,0]
["PU-03600","CINTA ADHESIVA JANEL #119 1.2x65 TRANSP",15.2,null,0]
["PU-03601","CINTA ADHESIVA JANEL 18 X 65 TRANSP.",22.8,null,0]
["PU-03602","CINTA ADHESIVA JANEL #119 24X65 TRANSP",30.4,null,0]
["PU-03688","CLIP WILSON JUMBO CAJA",43.58,null,0]
["PU-03690","CLIP WILSON EJECUTIVO NO.1",17.32,null,0]
["PU-03691","CLIP WILSON EJECUTIVO NO.2",15.12,null,0]
["PU-03693","CLIP WILSON GIGANTE NO.1 CON 12",27.94,null,0]
["PU-03694","CLIP WILSON GIGANTE NO.2 CON 50",51.24,null,0]
["PU-03746","COJIN P/SELLOS AZOR No. 1 PLASTICO 1STP",69.12,null,0]
["PU-03751","COJIN P/SELLO AZOR #2 DE LAMINA SECO 2ST",156.1,null,0]
["PU-03756","COJIN P/SELLO AZOR #2 PLASTICO SECO 2STP",109.8,null,0]
["PU-03977","CRAYON CRAYOLA CJA C/12 JUMBO 52-0312 *",78.36,null,0]
["PU-03978","CRAYON CRAYOLA CJA C/12 ESTANDAR",40.44,null,0]
["PU-03979","CRAYON CRAYOLA CJA C/24 JUMBO 52-0324 *",141.96,null,0]
["PU-03980","CRAYON CRAYOLA CJA C/24 ESTANDAR",79.040000000000006,null,0]
["PU-03981","CRAYON CRAYOLA CJA C/48 ESTANDAR 52-0048",165.26,null,0]
["PU-03983","CRAYON CRAYOLA CJA C/06 ESTANDAR",20.7,null,0]
["PU-04001","CRAYON CARMEN CAJA C/24 REDONDO *",41.38,null,0]
["PU-04109","CORRECTOR KORES 094 AQUA BASE/AGUA",20.8,null,0]
["PU-04116","CORRECTOR EN CINTA TOMBOW 4MMX10MT",100.48,null,0]
["PU-04121","CORRECTOR LIQUID PAPER",26.84,null,{"$f":"IFERROR(D265*C265,0)","v":0}]
["PU-04129","CORRECTOR LIQUID PAPER TIPO PLUMA",43.4,null,0]
["PU-04133","CORRECTOR ROLLER KORES 4.2MM.X15M ROLL O",73.44,null,0]
["PU-04286","CUADERNO EJEC PRINTAFO PROF P DURA C GDE",127.2,null,0]
["PU-04290","CUADERNO EJEC PRINTAFORM FR C-7 EJBKC7-C",92.68,null,0]
["PU-04300","CUADERNO ESTRELLA C/ESP C GDE 100 H F/F",31.28,null,0]
["PU-04301","CUADERNO ESTRELLA C/ESP RAYA 100 H F/F",31.28,null,0]
["PU-04302","CUADERNO ESTRELLA C/ESP C CH 100 H F/F",31.28,null,0]
["PU-04392","CUADERNO SCRIBE CLAS C/ESP RAYA 100H F/I",88.08,null,0]
["PU-04394","CUADERNO SCRIBE CLAS C/ESP C CH 100H F/I",88.08,null,0]
["PU-04395","CUADERNO SCRIBE CLAS C/ESP C GD 100H F/I",88.08,null,0]
["PU-04625","CUADERNO SCRIBE PROF ESC PLUS RAYA 100H",38.4,null,0]
["PU-04627","CUADERNO SCRIBE PROF ESC PLUS C CH 100 H",38.4,null,0]
["PU-04628","CUADERNO PROF SCRIBE ESC PL C7 100H 2973",38.4,null,0]
["PU-04760","CUADERNO ESTRELLA STAR K PROF RAYA 100 H",36.840000000000003,null,0]
["PU-04771","CUENTA FACIL AZOR NO.64 *",17.46,null,0]
["PU-04803","DEDAL DE HULE NO.11 CHICO",10,null,0]
["PU-04805","DEDAL DE HULE NO.12 GRANDE",10,null,0]
["PU-04806","DEDAL DE HULE NO.13 EXTRA GRANDE",11.2,null,0]
["PU-04812","DESENGRAPADORA DELTA D900 *",28.28,null,0]
["PU-04821","DESPACHADOR #136 PLAST CINTA CH O GD",221.24,null,0]
["PU-04826","DESPACHADOR SCOTCH C-38 *",122.7,null,0]
["PU-05055","BARRA MULTICONTACTO C/6 KOBLENZ NO.SS420",249.9,null,0]
["PU-05117","ENGRAPADORA SWING LINE TIRA COMPLETA",252.38,null,0]
["PU-05171","ENGRAPADORA PILOT 400 TIRA COMPLETA",621.46,null,0]
["PU-05215","ENGRAPADORA PILOT 402 GOLPE MEDIA TIRA",288.95999999999998,null,0]
["PU-05991","ETIQUETA AVERY #5791 PERM RED. VDE C/450",44.18,null,0]
["PU-06140","ETIQUETA JANEL NO.02 16X22MM",42.56,null,0]
["PU-06141","ETIQUETA JANEL NO.23 19X38MM",42.56,null,0]
["PU-06146","ETIQUETA JANEL NO.24 32X64MM",42.56,null,0]
["PU-06148","ETIQUETA JANEL NO.25 50X00MM",42.56,null,0]
["PU-06160","ETIQUETA JANEL NO.13 67X47MM",42.56,null,0]
["PU-06415","FOLDER ACCOPRESS C/BROCHE 8CM T/C AMARIL",25.62,null,0]
["PU-06418","FOLDER ACCOPRE C/ BROCHE T/C CAOBA P4555",25.62,null,0]
["PU-06422","FOLDER ACCOPRESS C/BROCHE 8CM T/C VDE OB",25.62,null,0]
["PU-06606","FOLDER COLORES INTENSOS T/CARTA NARANJA",7.92,null,0]
["PU-06607","FOLDER COLORES INTENSOS T/CARTA AMARILLO",7.92,null,0]
["PU-06608","FOLDER COLORES INTENSOS T/CARTA ROJO",7.92,null,0]
["PU-06610","FOLDER COLORES INTENSOS T/CARTA VERDE",7.92,null,0]
["PU-06615","FOLDER COLORES INTENSOS T/O ROJO 1PZ",10.3,null,0]
["PU-06616","FOLDER COLORES INTENSOS T/O AZUL REY 1PZ",10.3,null,0]
["PU-06618","FOLDER CARTA CAJA C/100 AZUL",364.32,null,0]
["PU-06619","FOLDER CARTA CAJA C/100 AMARILLO",364.32,null,0]
["PU-06620","FOLDER CARTA CAJA C/100 ROSA",364.32,null,0]
["PU-06621","FOLDER CARTA CAJA C/100 VERDE",364.32,null,0]
["PU-06650","FOLDER COLORES INTENSOS T/O AMARILLO 1PZ",10.119999999999999,null,0]
["PU-06652","FOLDER COLORES INTENSOS T/O VERDE 1PZ",10.3,null,0]
["PU-06699","FOLDER CARTA CAJA C/100 CREMA *",331.2,null,0]
["PU-06778","FOLDER OFICIO CAJA C/100 AZUL *",399.16,null,0]
["PU-06779","FOLDER OFICIO CAJA C/100 AMARILLO *",399.16,null,0]
["PU-06780","FOLDER OFICIO CAJA C/100 ROSA *",399.16,null,0]
["PU-06781","FOLDER OFICIO CAJA C/100 VERDE *",399.16,null,0]
["PU-06782","FOLDER OFICIO CAJA C/100 CREMA *",372,null,0]
["PU-06979","CONTACT AUTOADHESIV JANEL TRANSP.45x10MT",176.88,null,0]
["PU-07026","GAFETE SABLON ACRILICO C/CORDON 6X9",52.02,null,0]
["PU-07057","GIS VINCI MOLDEADO BLANCO C/150 #2033",116.22,null,0]
["PU-07083","GIS VINCI MOLDEADO COLORES C/150 NO.2039",232.32,null,0]
["PU-07092","GIS CRAYOLA BLANCO C/150 NO.51-1406",376.12,null,0]
["PU-07285","GOMA FACTIS S20 2PZ",16.899999999999999,null,0]
["PU-07286","GOMA FACTIS 36R",7.16,null,0]
["PU-07458","GRAPAS PILOT C/5000 STANDAR",75.36,null,0]
["PU-07780","ATOMIZADOR 500 ML",38.4,null,0]
["PU-07932","BANDERITAS JANEL PLAST NEON CH C/5 COL",41.34,null,0]
["PU-07977","JUEGO GEOMETRIA SILCO KIDS S/COMPAS CHIC",25.88,null,0]
["PU-07996","JUEGO GEOMETRIA SABLON FLEXIBLE S/COMPAS",161,null,{"$f":"IFERROR(D329*C329,0)","v":0}]
["PU-08230","LAPICES COLORES CRAYOLA C/12 LARGOS 4012",120.52,null,0]
["PU-08231","LAPICES COLORES CRAYOLA C/24 LARGOS 4024",237.94,null,0]
["PU-08252","LAPICES COLORES PRISMACOLOR JUNIOR C/12",136.84,null,0]
["PU-08255","LAPICES DE COLORES PRISMACOLOR JR C/48",521.86,null,0]
["PU-08322","LAPIZ MIRADO NO.2 HEXAGONAL C/12 PZ",77.180000000000007,null,0]
["PU-08329","LAPIZ BEROL TURQUESA HB *",17.66,null,0]
["PU-08334","LAPIZ BEROL TURQUESA 4B ***",17.66,null,0]
["PU-08346","LAPIZ MIRADO TRIANGULAR No. 2",7.38,null,0]
["PU-08361","LAPIZ DIXON BICOLOR DELG HEXA 47073",9.36,null,0]
["PU-08375","LAPIZ AZOR EKUZ HB TRIANG CAJA 10 PIEZAS",51.74,null,0]
["PU-08417","LAPIZ BEROL VERITHIN ROJO NO. 745",11.78,null,0]
["PU-12562","LIBRO TAB/FLORETE 100 H 10 COLUMNAS #479",322.12,null,0]
["PU-12789","LIBRETA SCRIBE P.D. 96H C/CH F FRANCESA",97.04,null,0]
["PU-12809","LIBRETA ESTRELLA P DURA 96H RAYA F/I",57.96,null,0]
["PU-12810","LIBRETA ESTRELLA P DURA 96 H. C CH F/I",57.96,null,0]
["PU-12811","LIBRETA ESTRELLA P DURA 96 H C GDE F/I",57.96,null,0]
["PU-12815","LIBRETA ESTRELLA P DURA 96 H RAYA F/F",62.66,null,0]
["PU-12816","LIBRETA ESTRELLA P DURA 96 H C CH F/F",62.66,null,0]
["PU-12817","LIBRETA ESTRELLA P DURA 96 H C GDE F/F",62.66,null,0]
["PU-12917","LIGA LEON NO.18",33.700000000000003,null,0]
["PU-13124","MARCADOR AZOR MAGISTRAL PLAST C/4 8364",120.38,null,0]
["PU-13156","MARCADOR AZOR MAGISTRAL DIDAC FINO C/4",81.64,null,0]
["PU-13268","MARCADOR AZOR SIGNAL FINO NEGRO 30001  *",19.079999999999998,null,0]
["PU-13291","MARCADOR AZOR MEGA SIZE PERMANENTE VERDE",39.700000000000003,null,0]
["PU-13318","MARCADOR AQUACOLOR 12 PZ",264.76,null,0]
["PU-13332","MARCADOR DE CERA MIRADO ROJO *",21.04,null,0]
["PU-13361","MARCATEXTOS AZOR VISION PLUS AMAR 2600AM",17.059999999999999,null,0]
["PU-13362","MARCATEXTOS AZOR VISION PLUS AZUL 2600AZ",17.059999999999999,null,0]
["PU-13363","MARCATEXTOS AZOR VISION PLUS NJA 2600NA",17.059999999999999,null,0]
["PU-13364","MARCATEXTOS AZOR VISION PLUS ROSA 2600RS",17.059999999999999,null,0]
["PU-13365","MARCATEXTOS AZOR VISION PLUS VDE 2600VE",17.059999999999999,null,0]
["PU-13382","MARCADOR ACUACOLOR C/04 *",96.44,null,0]
["PU-13383","MARCADOR ACUACOLOR C/08 *",186.68,null,0]
["PU-13387","MARCADOR AZOR MAGISTRAL ALUMI  C/4 COL",141.1,null,0]
["PU-13388","MARCADOR ACUACOLOR VIOLETA",20.18,null,0]
["PU-13443","MARCADOR PILOT PERMANENTE JUMBO NEGRO",124.48,null,0]
["PU-13444","MARCADOR PILOT PERMANENTE JUMBO ROJO",105,null,0]
["PU-13457","MARCADOR SHARPIE CHISEL C/8",242.72,null,0]
["PU-13536","MARCADOR AZOR MEGA PERMANENTE NGO 1500NE",39.700000000000003,null,0]
["PU-13537","MARCADOR AZOR MEGA SIZE PERMANENTE AZUL",39.700000000000003,null,0]
["PU-13538","MARCADOR AZOR MEGA SIZE PERMANENTE ROJO",39.700000000000003,null,0]
["PU-13599","MICA AUTOADHESIVA 66X50 PAQUETE C/10 *",246.48,null,0]
["PU-13983","NAVAJA P/CUTER CORTY PAQ.C/10 CHICA",33.56,null,0]
["PU-14267","PAPEL CREPE DURAZNO",12.1,null,0]
["PU-14271","PAPEL CREPE SALMON",12.1,null,0]
["PU-14281","PAPEL CREPE BUGAMBILIA",12.1,null,0]
["PU-14293","PAPEL CREPE AMARILLO CANARIO",12.1,null,0]
["PU-14315","PAPEL CREPE AZUL REY",12.1,null,0]
["PU-14320","PAPEL CREPE AMARILLO HUEVO *",12.1,null,0]
["PU-14321","PAPEL CREPE AZUL CLARO *",12.1,null,0]
["PU-14322","PAPEL CREPE AZUL MARINO *",12.1,null,0]
["PU-14323","PAPEL CREPE BLANCO *",12.1,null,0]
["PU-14324","PAPEL CREPE CAFE *",12.1,null,0]
["PU-14325","PAPEL CREPE NARANJA *",12.1,null,0]
["PU-14327","PAPEL CREPE NEGRO *",12.1,null,0]
["PU-14328","PAPEL CREPE ROJO BANDERA *",12.1,null,0]
["PU-14329","PAPEL CREPE ROSA CLARO *",12.1,null,0]
["PU-14330","PAPEL CREPE ROSA MEXICANO *",12.1,null,0]
["PU-14331","PAPEL CREPE VERDE BANDERA *",12.1,null,0]
["PU-14332","PAPEL CREPE VERDE LIMON *",12.1,null,0]
["PU-14347","PAPEL DE CHINA AMARILLO CLARO",2.68,null,0]
["PU-14348","PAPEL DE CHINA AMARILLO HUEVO",2.68,null,0]
["PU-14349","PAPEL DE CHINA AZUL CLARO",2.68,null,0]
["PU-14350","PAPEL DE CHINA AZUL FUERTE",2.68,null,{"$f":"IFERROR(D393*C393,0)","v":0}]
["PU-14353","PAPEL DE CHINA BLANCO *",2.4,null,0]
["PU-14360","PAPEL DE CHINA MORADO",2.68,null,0]
["PU-14361","PAPEL DE CHINA NARANJA",2.68,null,0]
["PU-14362","PAPEL DE CHINA NEGRO",2.68,null,0]
["PU-14366","PAPEL DE CHINA VERDE BANDERA",2.68,null,0]
["PU-14367","PAPEL DE CHINA VERDE LIMON",2.68,null,0]
["PU-14372","PAPEL DE CHINA ROSA MEXICANO",2.68,null,0]
["PU-14532","PAPEL OPALINA T/CARTA 125GM C/100 HOJAS",216,null,0]
["PU-14553","PAPEL BOND P/ROTAFO CUADRI 7MM 70X95CM",6.46,null,0]
["PU-14565","PAPEL BOND P/ROTAFOLIO 70X95CM 40K BCO",7.4,null,0]
["PU-14644","PAPEL LUSTRE BLANCO",8.06,null,0]
["PU-14645","PAPEL LUSTRE CAFE",8.06,null,0]
["PU-14646","PAPEL LUSTRE AZUL CIELO",8.06,null,0]
["PU-14647","PAPEL LUSTRE VERDE BANDERA",8.06,null,0]
["PU-14648","PAPEL LUSTRE ROSA PASTEL",8.06,null,0]
["PU-14649","PAPEL LUSTRE AZUL MARINO",8.06,null,0]
["PU-14651","PAPEL LUSTRE NARANJA",8.06,null,0]
["PU-14654","PAPEL LUSTRE MORADO",8.06,null,0]
["PU-14655","PAPEL LUSTRE ROSA MEXICANO",8.06,null,0]
["PU-14656","PAPEL LUSTRE LILA",8.06,null,0]
["PU-14657","PAPEL LUSTRE VERDE NILO",8.06,null,0]
["PU-14658","PAPEL LUSTRE AZUL REY",8.06,null,0]
["PU-14659","PAPEL LUSTRE GRIS",8.06,null,0]
["PU-14660","PAPEL LUSTRE AMARILLO HUEVO",8.06,null,0]
["PU-14815","PAPEL FACIA BOND T/CARTA 75G CAJA 5000 H",1593.6,null,0]
["PU-14850","PAPEL FOTO BOND T/CARTA 75G CAJA 5000H",1178.4000000000001,null,0]
["PU-14858","KIMBERLI DUPLICADOR HOJAS T/C BCO 500\r\n",209.4,null,0]
["PU-14873","PAPEL XEROX ECOLOGICO T/C CAJA C/10 PAQ",1323.65,null,0]
["PU-14953","PAPEL BOND COPY LASER T/C CAJA 5000 HOJA",1378,null,0]
["PU-15000","PAPEL AMERICA ROLLO C/25 MTS AZUL REY *",295.2,null,0]
["PU-15016","PAPEL AMERICA ROLLO C/25 MTS BLANCO *",295.2,null,0]
["PU-15020","PAPEL AMERICA ROLLO C/25 MTS NEGRO *",295.2,null,0]
["PU-15021","PAPEL AMERICA ROLLO 25 MTS ROSA PASTEL",295.2,null,0]
["PU-15022","PAPEL AMERICA ROLLO C/25 MTS ROJO *",295.2,null,0]
["PU-15023","PAPEL AMERICA ROLLO 25 MT ROSA MEXICANO",295.2,null,0]
["PU-15024","PAPEL AMERICA ROLLO C/25 MTS SALMON *",295.2,null,0]
["PU-15025","PAPEL AMERICA ROLLO 25 MTS VERDE BANDERA",295.2,null,0]
["PU-15080","PAPEL ENVOL KAPEL ROLLO 1.25x90MT 33KG",1831.1,null,0]
["PU-15329","PEGAMENTO PRITT TAK 35GR CUADRITO ADHESI",62.94,null,0]
["PU-15345","PEGAMENTO LAPIZ ADHESIVO PRITT 22 GMS  *",44.24,null,0]
["PU-15347","PEGAMENTO LAPIZ ADHESIVO PRITT 42GM JUMB",70.92,null,0]
["PU-15410","PEGAMENTO LAPIZ ADHESIVO KORES 40 GRS *",52.4,null,0]
["PU-15547","PERFORADOR PEGASO NO.300 TRIPLE",2021.14,null,0]
["PU-15550","PERFORADORA PEGASO N°800 8 CM",1045.96,null,0]
["PU-15554","PERFORADOR PEGASO AJUSTABLE TRIPLE METAL",267.82,null,0]
["PU-15557","PERFORADOR PEGASO NO.540 1 ORIFICIO",52.46,null,0]
["PU-15640","PINCEL CRAYOLA ESCOLARES BLISTER C/4",100.6,null,0]
["PU-15679","PINCELES ARTESANAL SURTIDOS C/6 ***",74.099999999999994,null,0]
["PU-16008","PISTOLA JISS P/SILICON GRUESO",396,null,0]
["PU-16508","PLASTILINA VINCI #33 BARRA 180G VIOLETA",19.739999999999998,null,0]
["PU-16509","PLASTILINA VINCI #24 BARRA 180G ROJA",19.739999999999998,null,0]
["PU-16510","PLASTILINA VINCI #32 BARRA 180G VDE PAST",19.739999999999998,null,0]
["PU-16511","PLASTILINA VINCI #32 BARRA 180G AZUL CLA",19.739999999999998,null,0]
["PU-16512","PLASTILINA VINCI #26 BARRA 180G AZUL COB",19.739999999999998,null,0]
["PU-16513","PLASTILINA VINCI #30 BARRA 180G BLANCO",19.739999999999998,null,0]
["PU-16514","PLASTILINA VINCI #31 BARRA 180G NEGRO",19.739999999999998,null,0]
["PU-16515","PLASTILINA VINCI #28 BARRA 180G CAFÉ",19.739999999999998,null,0]
["PU-16518","PLASTILINA VINCI #22 BARRA 180G NARANJA",19.739999999999998,null,0]
["PU-16519","PLASTILINA VINCI #25 BARRA 180G VDE CLAR",19.739999999999998,null,0]
["PU-16520","PLASTILINA VINCI #23 BARRA 180G ROSA",19.739999999999998,null,0]
["PU-16521","PLASTILINA VINCI C/10 BARRAS",30.24,null,0]
["PU-16940","PORTALAPICES ACRILICO SABLON ECONO HUMO",25.72,null,0]
["PU-17296","PORTAMINAS AZOR ASPEN NO.6470",30.4,null,0]
["PU-17337","CUTTER AZOR NO 3055 CHICO",6.3,null,{"$f":"IFERROR(D457*C457,0)","v":0}]
["PU-17373","SOBRE PLAST OXFORD C/ROND CARTA AZ F509A",46.5,null,0]
["PU-17652","PROTECTOR P/HOJA GUARDA T/C C/100 PZ 330",259.24,null,0]
["PU-17653","PROTECTOR KINERA OPACO CARTA C/100 PZAS",242.74,null,0]
["PU-17654","PROTECTOR KINERA OPACO T/OFICIO  C/50PZ",281.52,null,0]
["PU-17708","PUNTILLA AZOR HB 0.5 MM TUBO C/12 6405",11.48,null,0]
["PU-17709","PUNTILLA AZOR HB 0.7 MM TUBO C/12 6407",10.32,null,0]
["PU-17917","REFUERZO ENGOMADO C/144 BLANCO *",14,null,0]
["PU-17938","REGLA ALUMINIO NO.1230 SECRETARIAL 30CM",30.8,null,0]
["PU-18012","REGISTRADOR LEFORT CARTA TRADICIONAL *",90.76,null,0]
["PU-18015","REGISTRADOR LEFORT OFICIO TRADICIONAL *",97.2,null,0]
["PU-18427","PEGAMENTO RESISTOL 850 PROFESIONAL 1K *",238.08,null,0]
["PU-18428","PEGAMENTO RESISTOL 850 PROFESIONAL 500G",141.28,null,0]
["PU-18429","PEGAMENTO RESISTOL 850 PROFESIONAL 250G",81.400000000000006,null,0]
["PU-18431","PEGAMENTO RESISTOL 5000 LATA DE 1 LT",530.14,null,0]
["PU-18481","REVISTERO INDIVIDUAL SABLON NGO #1925NE",115.72,null,0]
["PU-18819","SACAPUNTAS HACHA",9,null,0]
["PU-18902","SACAPUNTAS ELECTRIC PEGASO CUADRADO 1920",1028.6199999999999,null,0]
["PU-18903","SACAPUNTAS ELECTRIC PEGASO VERTICAL 1930",698.64,null,0]
["PU-19020","SEPARADOR OMNIDEX C/10 DIVISIONES NO.20",73.94,null,0]
["PU-19029","SEPARADOR OMNIDEX C/05 DIVISIONES NO.20",47.56,null,0]
["PU-19036","SEPARADOR OMNIDEX C/12 DIVISIONES #24120",78.459999999999994,null,0]
["PU-19087","SILICON LIQUIDO BARRILITO 30 ML",29.44,null,0]
["PU-19088","SILICON LIQUIDO BARRILITO 30 ML",119.54,null,0]
["PU-19149","SOBRE MANILA COIN #5 8.8X16.4-90 C/100PZ",150.47999999999999,null,0]
["PU-19152","SOBRE MANILA C/50 ENG 17x25 ESQUELA 90G",201.44,null,0]
["PU-19153","SOBRE MANILA C/50 ENG 30.5x39.5 LEG 90G",672.24,null,0]
["PU-19154","SOBRE MANILA C/25 HILO 25.5X34 EXTOF 115",336.16,null,0]
["PU-19156","SOBRE MANILA C/50 ENG 23x30 CARTA 90G",272.66000000000003,null,0]
["PU-19157","SOBRE MANILA C/50 ENG 24x34 OF 90G",350.52,null,0]
["PU-19158","SOBRE MANILA C/50 ENG 25.5x34.5 EXTOF 90",374.16,null,0]
["PU-19159","SOBRE MANILA C/25 HILO 30.5X39.5 LEG 115",384.1,null,0]
["PU-19160","SOBRE MANILA C/25 HILO 24X34 OF 115G",279.06,null,0]
["PU-19161","SOBRE MANILA C/25 HILO 17X25 ESQUELA 115",194.84,null,0]
["PU-19162","SOBRE MANILA C/25 HILO 23X30.5  CTA 115G",238.28,null,0]
["PU-19172","SOBRE BOLSA MANILA/HILO 26X34 EXT-OFICIO",12.8,null,0]
["PU-19178","SOBRE BOLSA MANILA/HILO 30.5X39.5 LEGAL",16.600000000000001,null,0]
["PU-19179","SOBRE BOLSA MANILA/HILO 24X34 OFICIO 1PZ",13.26,null,0]
["PU-19180","SOBRE BOLSA MANILA/HILO 17X25 ESQUELA 1P",9.66,null,0]
["PU-19181","SOBRE BOLSA MANILA/HILO 23X30.5 CARTA 1P",10.3,null,0]
["PU-19341","TABLA AGARRAPAPEL T/OFICIO (20)",81.84,null,0]
["PU-19343","TABLA AGARRAPAPEL ACRILICO T/OF METAL",196.16,null,0]
["PU-19460","TAPETE P/MOUSE SABLON AZUL #2507AZ",100.88,null,0]
["PU-19514","TARJETA BRISTOL 4 X 6 BCA C/100",37.700000000000003,null,0]
["PU-19515","TARJETA BRISTOL 5 X 8 BCA C/100",67.459999999999994,null,0]
["PU-19516","TARJETA BRISTOL RAYADA 3 X 5 C/100",28.22,null,0]
["PU-19518","TARJETA BRISTOL RAYADA 5 X 8 C/100",71.760000000000005,null,0]
["PU-19806","TIJERA BARRILITO ESCOLAR B60 PUNTA ROMA",39.9,null,0]
["PU-19808","TIJERA BARRILITO 8642-8CN 23 CM",356.36,null,0]
["PU-19815","TIJERA BARRILITO OFNA T7X OREJASPLASTICO",103.6,null,0]
["PU-20029","TINTA AZOR ROLAPLICA P/SELLO NEGRO",52.96,null,0]
["PU-20030","TINTA AZOR ROLAPLICA P/SELLO AZUL",52.96,null,0]
["PU-20031","TINTA AZOR ROLAPLICA P/SELLO VERDE",52.96,null,0]
["PU-20032","TINTA AZOR ROLAPLICA P/SELLO ROJO",52.96,null,0]
["PU-20033","TINTA AZOR ROLAPLICA P/SELLO VIOLETA",52.96,null,0]
["PU-3756","COJIN P/SELLO AZOR #2 PLASTICO SECO 2STP",92,null,0]
["PU-80011","CINTA CANELA SCOTCH 48X150 (301C)",133.76,null,0]
["PU-80229","MEMORIA USB ADATA 16GB AC008-16G",124.88,null,0]
["PU-88887","PAPEL BOND T/C SUPRA COL BRILLANT C/100H",103.76,null,0]
["PU-88888","PAPEL BOND T/C SUPRA NEON C/250H COL SUR",259.38,null,0]
["PU-88889","PAPEL BOND T/C PASTEL C/250H COL SURTIDO",253.12,null,0]
["GO-1010GBA","GRAPA ESTANDAR CAJA C/5000",25,null,0]
["GO-146-5","TIJERA ESCOLAR ACERO INOX P/ROMA 5150 3",22,null,0]
["GO-146-5NI","TIJERA ESCOLAR ACERO INOX ZURDO 5176 3",22,null,0]
["GO-22533N","***TABLA CON CLIP TAMAÑO CARTA",52,null,{"$f":"IFERROR(D521*C521,0)","v":0}]
["GO-803","***PERFORADORA 1 ORIFICIO 6MM 1/4\" BARRI",40,null,0]
["GO-8057LG","LAPIZ GRAFITO TRIANGULAR BLISTER C/10 PZ",45,null,0]
["GO-BR34","PINCEL 19 MM (3/4\") BARRILITO EN BLISTER",27,null,0]
["GO-BWS30-2B","*GOMA PLASTICA BLANCA BLISTER C/ 2 PZAS.",14,null,0]
["GO-CM130","***CIRCULOS PARA DECORAR",53,null,0]
["GO-D05","TIJERA PAPELERA ESCOLAR ACERO INOX 71914",7,null,0]
["GO-D25","PINCEL DE 25,4 MM (1\") \"DELTA\"",12,null,0]
["GO-D900","DESENGRAPADOR   \"DELTA\"",17,null,0]
["GO-E003","OJOS MOVILES IRIS COLORES BOLSA C/66 PZ",27,null,0]
["GO-EC-40","ESPONJA PARA PINTAR EN CILINDRO",19,null,0]
["GO-EM130","ESTRELLA MADERA 25GDE, 40MED, 65CHICOS",63,null,0]
["GO-FD4C004","FOAMY DIAMAN 4C AMARILLO 1 PAQ.C/10 HOJA",195,null,0]
["GO-FD4C006","FOAMY DIAMAN 4C ROSA 1 PAQ.C/10 HOJAS",195,null,0]
["GO-GREKA1","TIJERA GREKA ZIGZAG CHICA",59,null,0]
["GO-HM130","CORAZONES MADERA 25GDE, 40MED, 65CHICOS",63,null,0]
["GO-P002F","LIMPIAPIPAS COLORES BRILLANTES BOLSA 30P",25,null,0]
["GO-PAL-40","PALETAS CON ESPONJA PARA PINTAR",27,null,0]
["GO-SM130","CUADROS MADERA 25 GDE, 40 MED, 65 CHICOS",63,null,0]
["GO-W001","PALITOS MAD PLANOS COLOR NAT BOLSA C/150",39,null,0]
["GO-W001C","PALITOS MAD PLANOS COL SURT BOLSA  C/150",41,null,0]
["GO-W060C","MICRO PINZAS MADERA COLORES BOLSA C/24",60,null,0]
["PL130-AM","CREARTOYS MASA MOLDEABLE AMARILLO 130 G",31,null,0]
["PL130-AZ","CREARTOYS MASA MOLDEABLE AZUL 130 G",31,null,0]
["PL130-BL","CREARTOYS MASA MOLDEABLE BLANCO 130 G",31,null,0]
["PL130-CA","CREARTOYS MASA MOLDEABLE CAFÉ 130 G",31,null,0]
["PL130-MO","CREARTOYS MASA MOLDEABLE MORADO 130 G",31,null,0]
["PL130-NA","CREARTOYS MASA MOLDEABLE NARANJA 130 G",31,null,0]
["PL130-RJ","CREARTOYS MASA MOLDEABLE ROJO 130 G",31,null,0]
["PL130-RS","CREARTOYS MASA MOLDEABLE ROSA 130 G",31,null,0]
["PL130-VE","CREARTOYS MASA MOLDEABLE VERDE 130 G",31,null,0]
["PL500-AM","CREARTOYS MASA MOLDEABLE AMARILLO 500GR",94,null,0]
["PL500-AZ","CREARTOYS MASA MOLDEABLE AZUL 500 GR",94,null,0]
["PL500-BL","CREARTOYS MASA MOLDEABLE BLANCO 500 GR",94,null,0]
["PL500-CA","CREARTOYS MASA MOLDEABLE CAFÉ 500 GR",94,null,0]
["PL500-MO","CREARTOYS MASA MOLDEABLE MORADO 500 GR",94,null,0]
["PL500-NA","CREARTOYS MASA MOLDEABLE NARANJA 500 GR",94,null,0]
["PL500-RJ","CREARTOYS MASA MOLDEABLE ROJO 500 GR",94,null,0]
["PL500-RS","CREARTOYS MASA MOLDEABLE ROSA 500 GR",94,null,0]
["PL500-VE","CREARTOYS MASA MOLDEABLE VERDE 500 GR",94,null,0]
["PL1000-AM","CREARTOYS MASA MOLDEABLE  AMARILLO 1 KG",175,null,0]
["PL1000-AZ","CREARTOYS MASA MOLDEABLE AZUL 1 KG",175,null,0]
["PL1000-BL","CREARTOYS MASA MOLDEABLE BLANCO 1 KG",175,null,0]
["PL1000-CA","CREARTOYS MASA MOLDEABLE CAFÉ 1 KG",175,null,0]
["PL1000-MO","CREARTOYS MASA MOLDEABLE MORADO 1 KG",175,null,0]
["PL1000-NA","CREARTOYS MASA MOLDEABLE NARANJA 1 KG",175,null,0]
["PL1000-RJ","CREARTOYS MASA MOLDEABLE ROJO 1 KG",175,null,0]
["PL1000-RS","CREARTOYS MASA MOLDEABLE ROSA 1KGR",175,null,0]
["PL1000-VE","CREARTOYS MASA MOLDEABLE VERDE 1 KG",175,null,0]
["PL2000-AM","CREARTOYS MASA MOLDEABLE AMARILLO 2 KG",337,null,0]
["PL2000-AZ","CREARTOYS MASA MOLDEABLE AZUL 2 KG",337,null,0]
["PL2000-BL","CREARTOYS MASA MOLDEABLE BLANCO 2 KG",337,null,0]
["PL2000-CA","CREARTOYS MASA MOLDEABLE CAFÉ 2 KG",337,null,0]
["PL2000-MO","CREARTOYS MASA MOLDEABLE MORADO 2 KG",337,null,0]
["PL2000-NA","CREARTOYS MASA MOLDEABLE NARANJA 2 KG",337,null,0]
["PL2000-RJ","CREARTOYS MASA MOLDEABLE ROJO 2 KG",337,null,0]
["PL2000-RS","CREARTOYS MASA MOLDEABLE ROSA 2 KG",337,null,0]
["PL2000-VE","CREARTOYS MASA MOLDEABLE VERDE 2 KG",337,null,0]
[null,null,null,"IMPORTE:",{"$f":"SUM(E8:E578)","v":1624}]
[null,null,null,"IVA:",{"$f":"(E579*16%)","v":259.84000000000003}]
[null,null,null,"TOTAL:",{"$f":"E579+E580","v":1883.8400000000001}]

{"sheet":"LIMPIEZA","index":1,"n_rows":348,"n_cols":5,"rows_kept":348,"cut":false,"hidden":false,"merged":[[0,0,0,4]]}
["COTIZADOR AGE LIMPIEZA Y DESINFECTANTE\nTOYS 2 TEACH S.A. DE C.V."]
["CLIENTE",null,null,"CONTACTO"]
["Mail:",null,null,"Teléfono"]
["ALCALDIA"]
[]
[]
["CLAVE","PRODUCTO","PRECIO\nSIN IVA","NO. DE PIEZAS","IMPORTE"]
["LAESP-120ML","LA DESINFECTANTE ESPUMA AB AGERM 120 ML",125,null,{"$f":"IFERROR(D8*C8,0)","v":0}]
["LAESP-250ML","LA DESINFECTANTE ESPUMA  AB AGERM 250 ML",172,null,{"$f":"IFERROR(D9*C9,0)","v":0}]
["LAESP-1L","LA DESINFECTANTE ESPUMA AB AGERM 1L",215,null,{"$f":"IFERROR(D10*C10,0)","v":0}]
["LAESP-5L","LA DESINFECTANTE ESPUMA AB AGERM 5L",534,null,{"$f":"IFERROR(D11*C11,0)","v":0}]
["LAESP-10L","LA DESINFECTANTE ESPUMA AB AGERM 10L",905,null,{"$f":"IFERROR(D12*C12,0)","v":0}]
["LAESP-20L","LA DESINFECTANTE ESPUMA AB AGERM 20L",1457,null,{"$f":"IFERROR(D13*C13,0)","v":0}]
["LASOL-120ML","LA DESINFECTANTE SOLUCION AGERM 120ML",112,null,{"$f":"IFERROR(D14*C14,0)","v":0}]
["LASOL-1L","LA DESINFECTANTE SOLUCION AGERM 1L",215,null,{"$f":"IFERROR(D15*C15,0)","v":0}]
["LASOL-5L","LA DESINFECTANTE SOLUCION AGERM 5L",534,null,{"$f":"IFERROR(D16*C16,0)","v":0}]
["LASOL-10L","LA DESINFECTANTE SOLUCION AGERM 10L",905,null,{"$f":"IFERROR(D17*C17,0)","v":0}]
["LASOL-20L","LA DESINFECTANTE SOLUCION AGERM 20L",1457,null,{"$f":"IFERROR(D18*C18,0)","v":0}]
["8614GR","SABLON CONTENEDOR 360 LT",6351,null,0]
["BAT0008VR","SOLPROD BASTON UNIVERSAL MADERA NATURAL",1,null,0]
["BAT0014CH","CISNE BASTON METAL PLATINUM 135 CM",1,null,0]
["BOL0001KB","KB BOLSA NAT  ALTA DEN 60X60 HD2424NA06",619,null,0]
["BOL0002KB","KB BOLSA NGA ALTA DEN 60X60  HD2424BK06",619,null,0]
["BOL0003KB","KB BOLSA NAT ALTA DEN 60X82.5 HD2433NA06",840,null,0]
["BOL0004KB","KB BOLSA NGA ALTA DEN 60X82.5 HD2433BK06",840,null,0]
["BOL0008KB","KB BOLSA NGA ALTA DEN 100X120 HD4048BK12",979,null,0]
["BOL0011KB","KB BOLSA NAT ALTA DEN 75X92.5 HD3037AN10",967,null,0]
["BOL0013KB","KB BOLSA NAT ALTA DEN 95X150 HD3860NA12",954,null,0]
["BOL0015KB","KB BOLSA NAT ALTA DEN 107.5X120",1004,null,0]
["BOL0016KB","KB BOLSA NGA ALTA DEN 107.5X120",1004,null,0]
["BOL0023KB","KB BOLSA NAT BIODEGRADAB ALT DEN 100X120",1009,null,0]
["CEP0001CN","CEPILLO PLANCHA ECONOMICO",21,null,0]
["CEP0001PE","CEPILLO PLANCHA PERICO CP-35",28,null,0]
["CON0002CB","CUBASA BASURERO RECTANGULAR GDE No. 25",179,null,0]
["CON0003CB","BASURERO CUBASA RECTANGULAR MED No.15",108,null,0]
["CON0003KC","RUBBER CONTENEDOR BRUTE 121L GRIS",1749,null,0]
["CON0010AS","MATERIAL DE CURACION",613,null,0]
["CON0010JK","PAPALERA GRANDE DE PEDAL C/DEPOSITO",1433,null,0]
["CON0013AS","CESTO GDE TAPA CIRC 11L  8086OR SABLÓN",339,null,0]
["CON0014EU","BOTE PLASTICO EUROPLAST C/R/T 120LT",785,null,0]
["CON0019AS","CESTO MEDIANO BALANCIN 17L 8093BL",373,null,0]
["CON0022AS","CESTO MEDIANO BALANCIN 17L NE/GR 8094GR",373,null,0]
["CON0022RD","TAPA BRUTE AZUL 2631 P/CONTENEDOR 2632",408,null,0]
["CON0023AS","CESTO MEDIANO BALANCIN 17L NE/VD 8099VD",373,null,0]
["CON0029AS","CESTO DE BAÑO 7.5L VERDE 8069VD",440,null,0]
["CON0030AS","CESTO DE BAÑO 7.5L ROSA 8068RO",440,null,0]
["CON0030KC","RUBBER TAPA P/CONTENEDOR BRUTE 121LGRIS",392,null,0]
["CON0039RD","CONTENEDOR BRUTE 121 LT C/TAPA ROJO",1749,null,0]
["CON0045AS","CESTO 120L C/RUEDA VDE/VDE 8336VD SABLON",3581,null,0]
["CON0051AS","CESTO 65L  BASU C/BALAN 8155NE 36X71X47",754,null,0]
["CON0068AS","CESTO 120L C/RUEDAS GRIS/VDE 8326 SABLON",3581,null,0]
["CON0081AS","CESTO PEDAL BLANCO 17L ORGANICO 8526OR",851,null,0]
["CON0084AS","CESTO PEDAL NEGRO 17L INORGANICO 8531IN",851,null,0]
["CON0085AS","CESTO PEDAL NEGRO 17L ORGANICO 8536OR",851,null,0]
["CON0086AS","CESTO PEDAL NEGRO 17L ORG/INORG 8534DU",894,null,0]
["CON0092AS","CESTO REDONDO DE MALLA GRIS",362,null,0]
["CON0237AS","CESTO 80L TAPA ELIPT 8676 ORGANICO SABLO",1174,null,0]
["CON0276AS","CESTO BASURA MEDIANO 42L S/TAPA",376,null,0]
["CUB0001FG","CUBETA C/EXPRIMIDOR 10LT GRIS/NGO VILEDA",448,null,0]
["CUB0002GO","GORILLA CUBETA EXPRIMIDORA C/PRENSA 32L",1760,null,0]
["CUB0002KC","CUBETA EXPRIM 33L WAVEBRAKE 7580YELLO RU",4151,null,0]
["CUB0003CP","CUPLAI SA CUBETA DE PLASTICO #4 ROJO",29,null,0]
["CUB0006CP","CUBETA PLAST CUPLASA # 4 AMARILLO LIMON",29,null,0]
["CUB0008CU","JICARA DE PLASTICO 1LT. 18X9 CM",15,null,0]
["CUB0009CP","CUPLASA CUBETA DE PLASTICO #6 ROJO",40,null,0]
["CUB0010VR","CUBETA FLEXIBLE AMARILLA # 8",46,null,{"$f":"IFERROR(D66*C66,0)","v":0}]
["CUB0011VR","HEROL CUBETA FLEXIBLE AZUL #8 CAP 4L",46,null,0]
["CUB0012CP","CUBETA PLAST CUPLASA # 6 AMARILLO LIMON",40,null,0]
["CUB0015CP","CUPLASA CUBETA DE PLASTICO #8 ROJO",58,null,0]
["CUB0016VR","CUBETA FLEXIBLE AMARILLA # 14",116,null,0]
["CUB0017VR","HEROL CUBETA FLEXIBLE AZUL #14 CAP 10L",116,null,0]
["CUB0018CP","CUBETA PLAST CUPLASA # 8 AMARILLO LIMON",58,null,0]
["CUB0021CP","CUPLASA CUBETA DE PLASTICO #10 ROJO",71,null,0]
["CUB0022VR","CUBETA FLEXIBLE AMARILLA # 16",127,null,0]
["CUB0023VR","HEROL CUBETA FLEXIBLE AZUL #16 CAP 11L",127,null,0]
["CUB0027CP","CUPLASA CUBETA DE PLASTICO #12 ROJO",69,null,0]
["CUB0028VR","CUBETA FLEXIBLE AMARILLA # 18",145,null,0]
["CUB0029VR","HEROL CUBETA FLEXIBLE AZUL #18 CAP 15L",145,null,0]
["CUB0030CP","CUBETA PLAST CUPLASA # 12 AMARILLO LIMON",71,null,0]
["CUB0033CP","CUPLASA CUBETA DE PLASTICO #14 ROJO",121,null,0]
["CUB0036CP","CUBETA PLAST CUPLASA # 14 AMARILLO LIMON",121,null,0]
["CUB0039CP","CUPLASA CUBETA DE PLASTICO #16 ROJO",122,null,0]
["CUB0042CP","CUBETA PLAST CUPLASA # 16 AMARILLO LIMON",124,null,0]
["CUB0045CP","CUPLASA CUBETA DE PLASTICO #18 ROJO",156,null,0]
["CUB0048CP","CUBETA PLAST CUPLASA # 18 AMARILLO LIMON",156,null,0]
["CUB0054CP","CUBETA PLAST CUPLASA # 20 AMARILLO LIMON",178,null,0]
["ESC0001AA","ESCOBA TIPO CEPILLO RECICLADA",66,null,0]
["ESC0001VR","ATADO DE ESCOBA DE VARA",176,null,0]
["ESC0002PE","PERICO ESCOBA TIPO CEPILLO HECHICERA HC",100,null,0]
["ESC0003PO","PALMA ORO ESCOBA TIPO CEPILLO MIXTA CH",115,null,0]
["ESC0003SP","ESCOBA MIJO SUPREMA 7 HILOS MIXTA",182,null,0]
["ESC0003VR","ESCOBA DE VARA",176,null,0]
["ESC0004PE","PERICO ESCOBA TIPO CEPILLO P-140",98,null,0]
["ESC0004PO","PALMA ORO ESCOBA TIPO CEPILLO VINILO CH",120,null,0]
["ESC0004SP","ESCOBA SUPREMA MIJO 7 HILOS",251,null,0]
["ESC0005PE","PERICO ESCOBA TIPO CEPILLO  P-180",99,null,0]
["ESC0005PO","PALMA ORO ESCOBA TIPO CEPILLO VINILO GDE",121,null,0]
["ESC0005SP","ESCOBA MIJO SUPREMA 8 HILOS MIXTA",225,null,0]
["ESC0006SP","ESCOBA MIJO SUPREMA 8 HILOS (14 KGS.DOC)",291,null,0]
["ESC0007PO","PALMA ORO ESCOBA TIPO CEPILLO MIXTA GDE",121,null,0]
["ESC0008PO","ESCOBA T/CEP PALMA ORO VINIL GDE AMA",121,null,0]
["ESC0010PE","PERICO ESCOBA TIPO CEPILLO MAXI P-200",111,null,0]
["ESC0011PE","PERICO ESCOBA TIPO CEPILLO ECONOMI B-100",73,null,0]
["ESC0013PE","PERICO ESCOBA TIPO CEPILLO VINILO CE",81,null,0]
["ESC0014PO","ESCOBA ABANICO PALMA GDE AMARILLA",126,null,0]
["ESC0015PE","PERICO ESCOBA TIPO CEPILLO GDE PLUS P220",121,null,0]
["ESC0016PE","ESCOBA T/CEP PERICO P-140 AMARILLA",98,null,0]
["ESC0020PO","ESCOBA T/CEP PALMA VINIL CHICA AMARILLA",120,null,0]
["ESC0022PE","PERICO ESCOBA TIPO CEPILLO P-140 VDE OBS",98,null,0]
["ESC0024PE","ESCOBA ABANICO PERICO P-250 AMARILLO",114,null,0]
["ESC0026PO","ESCOBA MIXTA PALMA ORO CHICA AMARILLA",113,null,0]
["ESC0032PE","ESCOBA CURVA PERICO P-180 AMARILLO",99,null,0]
["ESC0032PO","ESCOBA MIXTA PALMA ORO GDE AMARILLA",121,null,0]
["ESX0081KC","DESP INTERDOBLADA MINI BLANCO 94345 KC",849,null,0]
["EXP0001TL","GLANZ DESP HIGIENICO JR BCO",402,null,0]
["EXP0002JK","DOSIFICADOR JABON AITANA BCA AC7000 JOFE",525,null,0]
["EXP0002TL","GLANZ DESP TOALLA INTER BCO",486,null,0]
["EXP0003IS","REPUESTO P/DISP WIESE AROM BOSQUE 180g",94,null,0]
["EXP0003JK","DOSIFI GRIS JAB AITANA RELLENABLE 1 LT",559,null,0]
["EXP0003TL","DESPACHADOR PAPEL HIGIEN MR BLANCO GLANZ",565,null,0]
["EXP0004TL","DESPACHADOR TOALLA INTERDOBL HUMO GLANZ",514,null,0]
["EXP0005IS","DISPENSADOR P/AERO AUTOMATIC WIESE",546,null,0]
["EXP0005TL","JABONERA HUMO GRANEL 800ML GLANZ",502,null,0]
["EXP0006TL","DESPACHADOR JUMBO P/PAPEL HIGIE CL HUMO",621,null,0]
["EXP0008TL","JABONERA BLANCA GRANEL 800ML GLANZ",502,null,0]
["EXP0009TL","DESPACHADOR JUNIOR P/PAPEL HIGIE CL HUMO",432,null,0]
["EXP0010TL","GLANZ DESP TOALLA ROLLO BCO",1288,null,0]
["EXP0011TL","DESP TOALLA ROLLO HUMO GLANZ 26X34X27.5C",1288,null,0]
["EXP0012TL","JABONERA ECONOMICA HUMO GRANEL 750ML GLA",427,null,0]
["EXP0013TL","GLANZ DESP JABON ECON BCO750ML",427,null,{"$f":"IFERROR(D130*C130,0)","v":0}]
["EXP0017TL","GLANZ DESP TOALLA INTERDOBL BCO BABY",328,null,0]
["EXP0018TL","GLANZ DESP TOALLA INTERDOBL HUMO BABY",328,null,0]
["EXP0032JA","JVD CLEAN DISP. MANUAL GEL PARED 844479",494,null,0]
["EXP0032KC","JABONERA GRANEL TRANSP/BLANCA 94335 KC",555,null,0]
["EXP0033KC","DESP JABONERA GRANEL TRANS.HUMO 94236 1L",614,null,0]
["EXP0100KC","DESP 92276 TOALLA ROLLO PALANCA HUMO KIM",1708,null,0]
["EXP0175JK","JF DESP AC70011 JABON KROMO",1138,null,0]
["EXP0177JK","DESP PAPEL HIGIEN MINI SMART AE59403 HMO",473,null,0]
["EXP0197JK","JABONERA OPTICA C/DEPOSITO AC91050 JOFEL",1862,null,0]
["EXP0240JK","JABONERA AITANA GRIS ANTIBAC AC70020C JO",491,null,0]
["EXP0244JK","DESPACHADOR TOALLA INTERDOBL SMART HUMO",479,null,0]
["FIB0001J2","FIBRA ACERINA GRANDE 1 PZ",15,null,0]
["FIB0001VR","FIBRA RESTREGON 1 PZ",15,null,0]
["FIB0002J2","FIBRA METALICA ACERINA MEDIANA",12,null,0]
["FIB0004M3","FIBRA SCOTH BRITE BLANCA P-66 12PZ",241,null,0]
["FIB0005M3","FIBRA ESPONJA P-94 EXHIBOR C/12 PZ 3M",341,null,0]
["FIB0006M3","3M FIBRA SCOTCH NEGRA P76 C/12PZ",367,null,0]
["FIB0007M3","3M FIBRA SCOTCH VERDE P96 EXH-12 PZ",236,null,0]
["FIB0062M3","FIBRA ANTIRAYAS SCOTCHBRITE 120X80mm 12P",418,null,0]
["GUA0001FG","VILEDA GUANTE ULTRAPROTEC ROJO MED 7.5-8",92,null,0]
["GUA0001GV","GUANTE HULE ROJO REFORTEX VITEX #10",51,null,0]
["GUA0001PR","GUANTE ROJO REFORTEX VITEX 9",51,null,0]
["GUA0001VR","GUANTE CARNAZA CORTO",71,null,0]
["GUA0002GV","GUANTE ROJO REFORTEX VITEX 7",51,null,0]
["GUA0002VR","GUANTE HULE ROJO ADEX 6 1/2 - 7",51,null,0]
["GUA0003GV","GUANTE ROJO REFORTEX VITEX 7 1/2 1PAR",51,null,0]
["GUA0003SP","SOLPROD GUANTES DE LATEX ROJO TALLA #8",31,null,0]
["GUA0003VR","GUANTE HULE ROJO ADEX 7 1/2 - 8",51,null,0]
["GUA0004GV","GUANTE HULE ROJO REFORTEX VITEX #8",51,null,0]
["GUA0004VR","GUANTE HULE ROJO ADEX 8 1/2 - 9",51,null,0]
["GUA0005GV","GUANTE ROJO REFORTEX VITEX 8 1/2 1PAR",51,null,0]
["GUA0005PR","ALTEX GUANTE MULTIUSOS ROJO MD-8",39,null,0]
["GUA0007M3","3M GUANTE SATIN SCOTCHBRITE PROF ROJO GD",34,null,0]
["GUA0007SP","SOLPROD GUANTE AMARILLO #8",31,null,0]
["GUA0008SP","SOLPROD GUANTE AMARILLO #9",31,null,0]
["GUA0010GV","VITEX GUANTE MULTIUSOS ROJO #8",45,null,0]
["GUA0011GV","VIT- EX /GUANTE MULTIUSOS ROJO #8 1/2",45,null,0]
["GUA0012GV","VITEX GUANTE CLASICO ROJO #8",39,null,0]
["GUA0012PR","ALTEX GUANTE MULTIUSOS AMARILLO MD-8",39,null,0]
["GUA0014FG","VILEDA GUANTE SUPERFORT BICOLO MED 7.5-8",146,null,0]
["GUA0024GV","VITEX GUANTE CLASICO AMARILLO #8",39,null,0]
["GUA0028PR","ALTEX GUANTE PREMIUM ROJO MD- 8",52,null,0]
["GUA0031VR","ADEX GUANTE PASTEL AMARILLO 8",47,null,0]
["JAL0001AA","SOLPROD JALADOR P/PISOS HULE ROJO 40CM",67,null,0]
["JAL0001PE","JALADOR P/VIDRIOS MULTIUSOS PERICO PVL20",92,null,0]
["JAL0001PO","PALMA JALADOR PARA PISO 40CM",91,null,0]
["JAL0002AA","SOLPROD JALADOR P/PISOS HULE ROJO 50CM",71,null,0]
["JAL0002ID","JALADOR P/PISO IDEAL 40CM H ROJO",131,null,0]
["JAL0002PE","PERICO JALADOR PARA PISO 40CM PJ-40",73,null,0]
["JAL0003ID","JALADOR P/PISO IDEAL 50 CM H ROJO",180,null,0]
["JAL0004ID","JALADOR P/VIDRIO IDEAL 20 CMC/ESPONJA",79,null,0]
["MEC0004ID","MECHUDO PABILO 600GRS IDEAL",138,null,0]
["MEC0004MQ","SOLPROD MECHUDO PABILO 250 GR",67,null,0]
["MEC0005MQ","SOLPROD MECHUDO PABILO 400GRS",74,null,0]
["MEC0006ID","MECHUDO PABILO 400 HILO BCO 400GRS IDEAL",115,null,0]
["MEC0006MQ","SOLPROD MECHUDO PABILO 800 GR",109,null,0]
["MEC0008JX","JERMEX TRAPEADOR PABILO STRING 300GR VDE",98,null,0]
["MEC0009JX","JERMEX TRAPEADOR C/BASTON 250GR AMARILLO",66,null,0]
["MEC0010JX","JERMEX TRAPEADOR CON BASTON 500GR VERDE",94,null,0]
["MEC0010MQ","SOLPROD MECHUDO PABILO 500 GR",85,null,0]
["MEC0012JX","JERMEX TRAPEADOR CON BASTON 800GR AZUL",127,null,0]
["MPH0014MP","M.P.GUANTE CIRUJANO LATEX GDE C/100 PZ",286,null,0]
["MPH0031MP","M.P.GUANTE CIRUJANO LATEX MED C/100 PZ",258,null,0]
["MPH0035MP","M.P. GUANTE CIRUJANO LATEX CH C/100 PZ",286,null,{"$f":"IFERROR(D194*C194,0)","v":0}]
["PFA0003KC","PAÑUELO FACIAL KLEENEK 89330 72/90 HD",2298,null,0]
["PFA0004AX","ELITE PAÑUELO FAC ECO EXCELL 90HD C/36",1093,null,0]
["PFA0017KC","SCOTT 89355 PAÑUELO FACIAL 30/90HJS",762,null,0]
["PHI0001AX","ELITE HIGIENICO JUMBO 360 M HD 5940 C/6",728,null,0]
["PHI0001SF","FAPSA PAPEL HIG HD 12/180 3318",624,null,0]
["PHI0001SW","PAPEL LINEA 9 HD 200 MT/12 SOFT & WHITE",706,null,0]
["PHI0002AX","PAPEL HIG JUNIOR ELITE 12/180m 5957",693,null,0]
["PHI0002SF","PAPEL HIG FAPSA HD 12/200 mts 3320",698,null,0]
["PHI0002SW","PAPEL LINEA 9 HD 400 MT/6 SOFT & WHITE",706,null,0]
["PHI0003AX","PAPEL HIG PREMIUM HD ELITE 48/500m 6039",996,null,0]
["PHI0003SF","PAPEL HIG FAPSA HD 12/250 mts 3325",866,null,0]
["PHI0004SF","PAPEL HIGIENICO FAPSA HD 6/400 MTS 3340",698,null,0]
["PHI0005AX","ELITE HIGIENICO JUNIOR 300 M HD 5933 C/8",934,null,0]
["PHI0005SF","FAPSA HIGIENICO 500M HD500 BL 3350 C/6",893,null,0]
["PHI0005SW","PAPEL HIGIENICO LINEA 9HD 250M/12 SOFT&W",873,null,0]
["PHI0006SW","SOFT&WHITE HIGIENICO LINEA 9 HD 500M C/6",780,null,0]
["PHI0007AX","ELITE HIGIENICO JUMBO 500 M 6688 C/6",884,null,0]
["PHI0008AX","PAPEL HIGIENICO JUNIOR ELITE 12/250 6695",884,null,0]
["PHI0013SF","PAPEL HIG DALIA HD C/12/180 MTS 19318",545,null,0]
["PHI0013SW","SOFT&WHITE HIGIEN SLIP LINEA 9HD 360MC/6",585,null,0]
["PHI0014AX","HIGIENICO JUNIOR 12/200 MTS 8057 ELITE",656,null,0]
["PHI0014SF","DALIA HIGIENICO 360M HD BL HB19336 C/6",555,null,0]
["PHI0014SW","HIGIENICO SLIP LINEA 9HD 12/180M SOFT&WH",632,null,0]
["PHI0015AX","HIGIENICO JUMBO ELITE HD 6/400M 8064 ELI",658,null,0]
["PHI0016SF","PAPEL HIG DALIA HD C/12/200 MTS 19319-20",591,null,0]
["PHI0017SF","PAPEL HIG DALIA HD C/6/400 MTS 19340",604,null,0]
["PHI0023SF","PAPEL HIGIENICO BOB DALIA JR 12/250MTS",825,null,0]
["PHI0023SW","SOFT&WHITE HIGIENICO LINEA 9HD 300M C/12",873,null,0]
["PHI0024AX","ELITE HIGIENICO CLASIC 160M HD 0938 C/12",513,null,0]
["PHI0024SF","DALIA HIGIENICO 500M HD BL HB19350 C/6",825,null,0]
["PHI0028SF","PAPEL HIGIENICO TRAD 160 HD 24/4 DALIA",584,null,0]
["PHI0029SF","DALIA HIGIENICO 160M HD BL HB19316 C/12",524,null,0]
["PHI0029SW","HIGIENICO SLIP TRAD 175HD 24/4SOFT&WHITE",580,null,0]
["PHI0034KC","MARLI 90509 JUNIOR 12/200M HD",666,null,0]
["PHI0035KC","HIGIENICO MARLI 90510 JB 6/400M HD",672,null,0]
["PHI0096KC","MARLI 90531 JUNIOR 12/180M HD",629,null,0]
["PHI0098KC","KC HIGIEN MARLI JUMBO JR 360M HD C/6",598,null,0]
["PHI0101KC","MARLI 90524 TRAD 195HD 24/4",580,null,0]
["PHI0109KC","HIGIENICO KIMLARK 90451 TRAD 195HD 24/4",606,null,0]
["PHI0111KC","HIGIENICO PÉTALO 90449 TRAD 260HD 1/96",919,null,0]
["PHI0132KC","HIGIENICO SCOTT 90620 JUMBO JR 6/250M HD",506,null,0]
["PHI0133KC","KC HIGIENICO SCOTT JUMBO SR 500M HD C/6",948,null,0]
["PHI0142KC","HIGIENICO PÉTALO 90553 JUMBO JR6/250M HD",526,null,0]
["PHI0145KC","KC HIGIENICO PETALO JUMBO SR 500M HD C/6",991,null,0]
["PHI0148KC","KC HIGIENICO MARLI JUMBO JR 200M HS C/12",538,null,0]
["PTO0001AX","TOALLA ROLLO ELITE BCA HS 6/180m 5971",669,null,0]
["PTO0001SF","FAPSA TOALLA ROLLO 6/180 3610",605,null,0]
["PTO0002AX","TOALLA INTERD ELITE BCA HS 8/250 5995",455,null,0]
["PTO0002SF","TOALLA INTERD FAPSA HD BCA 20/100pz 3890",478,null,0]
["PTO0004AX","TOALLA INTERD ELITE BCA HD 2/100uds 6015",538,null,0]
["PTO0006SF","TOALLA INTERD ECO CAFE 8/250HS 3895 FAPS",321,null,0]
["PTO0007SF","TOALLA ROLLO FAPSA 6/160M 3606",607,null,0]
["PTO0008SF","TOALLA INTERD DALIA HS BCA 20/100 19700",381,null,0]
["PTO0013SW","TOALLA ROLLO HS BCA SLIP 6/160M SOFT&WHI",621,null,0]
["PTO0018KC","TOALLA INTERDOBLADA SANITAS 92231 20/100",432,null,0]
["PTO0019SF","HD BCA TOALLA INTERDOB TI19800 20/100DAL",351,null,0]
["PTO0024SW","SLIP TOALLA ROLLO BCA 6/180M",694,null,0]
["PTO0035KC","TOALLA ROLLO KLEENEX ULTRA 92224 6/183MT",1765,null,0]
["PTO0041KC","KC TOALLA ROLLO MARLI ECO 180M 92244 C/6",627,null,0]
["PTO0048KC","MARLI 92257 ROLLO 6/180MHS BCA",816,null,0]
["PTO0049KC","TOALLA ROLLO PÉTALO 92221 6/180MHS BCA",887,null,0]
["PTO0057KC","TOALLA INTERD MARLI 92209 ECON 10/200 BL",658,null,{"$f":"IFERROR(D256*C256,0)","v":0}]
["PTO0069KC","TOALLA INTERD PÉTALO 92113 20/150HS BCA",693,null,0]
["QJA0001SM","RUTH DETERGENTE MULTIUSOS EN POLVO 10KG",412,null,0]
["QJA0003DJ","DETERGENTE POLVO MULTIUSOS 10K FLORAL AR",491,null,{"$f":"IFERROR(D259*C259,0)","v":0}]
["QJA0004SM","DETERGENTE UTIL 10 KG",535,null,0]
["QJA0005CO","DETERGENTE BIODEGRADABLE ROMA DE 10 kg",681,null,0]
["QJA0009GK","JABON LIQ P/ MANOS 4LT MANZANA GEL KLEEN",208,null,0]
["QJA0015VR","BLANCA NIEVES DETERGENTE 10 KG",702,null,0]
["QJA0020CP","AXION LIQ LAVATRASTES LIMON 900 ML C/12",869,null,0]
["QUI0001CP","LIMPIADOR LIQ MULTIUSO AJAX AMONIA 12/1L",989,null,0]
["QUI0002CP","LIMPIADOR EN POLVO AJAX BICLORO 48/388gr",2571,null,0]
["QUI0002GI","PURELL GEL ANTISÉP P/MANOS 1903, 1200 ML",1968,null,0]
["QUI0002IH","H24 INSECT AEROSOL MATAMOSCAS/OS 400ml",101,null,0]
["QUI0004AN","PINOL AROMAS FLORAL 828ml",42,null,0]
["QUI0005CP","LIMPIADOR MULTIUSOS FABULOSO LAVAN 12/1L",669,null,0]
["QUI0005IS","PASTILLA C/CLORO WIESE 35 GRS C/12 PZ",505,null,0]
["QUI0005JJ","RAID MAX INSECTICIDA AEROSOL 400 ML PZA",147,null,0]
["QUI0006JJ","RAID INSECT CASAYJARDIN 400 ML",138,null,0]
["QUI0009CH","TOALLA SANIWIPE SANITIZANTE CUBETA C/400",704,null,0]
["QUI0009GK","MULTIUSOS LIQ 4 LTS LIMA LIMON GEL KLEEN",148,null,0]
["QUI0011CH","TOALLA SANITIZ SANIWIPE 2ROLLOS 400T C/U",1068,null,0]
["QUI0012KC","TOALLITAS HUMEDAS ANTIBAC C/50 ESCUDO 92",33,null,0]
["QUI0013CH","SANYWIPES TOALLA SANIT AROMA CITRI C/100",208,null,0]
["QUI0019KC","TOALLITAS DESINF SUPERFICIES C/300T ESCU",594,null,0]
["QUI0032VR","CLOROX 930 MLS",21,null,0]
["QUI0036AN","TOALLITAS DESINF S/CLORO C/48T CLORALEX",98,null,0]
["QUI0042AN","CLORALEX REGULAR 950ML",27,null,0]
["QUI0047AN","PINOL ORIGINAL 3.78 LL PIEZA",166,null,0]
["QUI0049AN","PINOL ORIGINAL 9 LITROS PIEZA",344,null,0]
["QUI0050AN","SULTAN ACIDO MURIATIC 15 PIEZAS DE 900ML",668,null,0]
["QUI0050JJ","BAYGON INSECTICIDA ULTRA VERDE 400 ML",111,null,0]
["QUI0151JJ","INSECTICIDA RAID ACCION TOTAL 400 ML 1PZ",131,null,0]
["QUI0242RC","LYSOL TOALLITAS DESINF CITRUS C/35 TOALL",105,null,0]
["QUI0380TL","TIPPSLINE GEL ALCOHOL SANITIZANTE 19L",1951,null,0]
["QUI0390TL","GEL ALCOHOL SANITIZANTE 500ML TIPPS LINE",98,null,0]
["QUI0398TL","GEL ALCOHOL SANITIZANTE 5L TIPPS LINE",588,null,0]
["QUI0438TL","TOALLA SANITIZANTE 100PZ 717X20CM TIPPS",213,null,0]
["QUI0582TL","TIPPS CLORO 3 20 L",492,null,0]
["QUI0598TL","TIPPS MULTIUSOS FLORAL 20 L",773,null,0]
["QUI0613RC","LYSOL SPRAY DESINFECTANTE MULTIUSO 650ML",119,null,0]
["QUI0618RC","LYSOL DESINF ANTIBAC CRISP LINE 354g",184,null,0]
["TRA0023CH","TRAPEADOR ANTIBACTER MICROFIB AZUL CISNE",225,null,0]
["TRA0024CH","TRAPEADOR ANTIBACTER MICROFIB GRIS CISNE",225,null,0]
["VAR0010VR","RECOGEDOR DE LAMINA MANGO LARGO",79,null,0]
["VAR0014CH","BAYETA MICROFIBRA PLUS SURTIDA 4PZ",202,null,0]
["1820581","PAÑO MICROFIBRA ESTANDAR ROJO 40X40",39,null,0]
["1820582","PAÑO MICROFIBRA ESTANDAR VERDE 40X40",39,null,0]
["1820583","PAÑO MICROFIBRA ESTANDAR AZUL 40X40",39,null,0]
["1820584","PAÑO MICROFIBRA ESTANDAR AMARILLO 40X40",39,null,0]
["FG-3349","BANDEJA PLASTICO RUBBERM 50x30x12 CM",640,null,0]
["JHDY-0111","BEFRESH LEMON LIMPIADOR BIDON",1781,null,0]
["JHDY-041","FORWARD FLORAL BIDON 5 LT",1618,null,0]
["JHDY-041.","FORWARD FLORAL DESINFECT BIDON 5LT.",1618,null,0]
["JHDY-0502","LIMPIADOR VITRIO BIDON DE 5 LTS",976,null,0]
["JHDY-160903","FAST DESENGRASANTE BIDON 5L ROJO",352,null,0]
["JHDY-160903.","LIMPIADOR MULTIUSOS DESENGRASANTE 5L RJ",352,null,0]
["JHDY-936","LIMPIADOR GERMYSAN BIDON DE 5 LT LIMPIAD",762,null,0]
["JRC-0106","BASTON P/ESCOBA ABANICO PERICO 000901-M",29,null,0]
["JRC-105","ESP ESCOBA T/CEPILLO PERICO (CP-35)",60,null,0]
["JRC-110002","FIB FIBRA VERDE P-96 12 PZ",28,null,0]
["JRC-110003","FIB FIBRA ESPONJA P-94 12 PZ",32,null,0]
["JRC-1401","QUI PASTILLA WIESE CAJA C/5O PZ. 80 GRS.",1080,null,0]
["JRC-20101","JBD ROMA BOLSA CON 10 KGS",686,null,0]
["JRC-210101","FRANELA BLANCA ROLLO 25 MTS",694,null,0]
["JRC-210103","FRANELA GRIS ROLLO 25 MTS CARPE",735,null,0]
["JRC-220106","JRC TEJ JERGA CARPE SUPERFINA BCA 25MT",840,null,0]
["JRC-4707","CLORO 6% SHINY PROTECH 20 L",406,null,0]
["JRC-70102","MOW MECHUDO DE PABILO 500 GRS",84,null,{"$f":"IFERROR(D323*C323,0)","v":0}]
["JRC-9706","DESINFECTANTE PINO SHINY PROTECH 18L",302,null,0]
["JRC-TEF","FRANELA ROJA ROLLO DE 25 MTS",692,null,0]
["JRC-TEJ","JERGA CARPE SUPERFINA BAC 25MT",840,null,0]
["KCPR 92221","TOALLA ROLLO PETALO CJ 180/6 ROLLOS",812,null,0]
["KCPR92257","TOALLA  ROLLO MARLI CJ 180/6 ROLLOS",657,null,0]
["KV-2208003164","REPUESTO TAPETE RIZO PVC GRAFITO P/BANDE",315,null,0]
["KV-3000100103","CHAROLA DESINF CALZAD C/ALM 58.5X36.5CM",300,null,0]
["KV-3000100103.","TAPETE DESINF CALZADO C/ALM 58.5x36.5CM",300,null,0]
["KV-800000269","ALFOMBRA SECADO LISA OXFORD 33x55CM",190,null,0]
["KV-9065265894","TAPETE DESINFECTANTE 38X58 CM",409,null,0]
["ME40J","NGRC MICROWIPE ULTRALITE YELLOW 1PZ",71,null,0]
["RMCP7814-08","SILLA PARIQUERA ST. RUBBEMAIDPLT",3827,null,0]
["RMCP7818-88","CAMBIADOR HORIZONTAL BEBE RUBBERMAID I P",7421,null,0]
["SHINY4400","CHLORUM HS SHINY PRO TECH 20L CLORO 6%",358,null,0]
["SHINY4801","VIEW  SHINY PRO TECH LIMPIA VIDRIOS 5L",198,null,0]
["SHINY509409","PINO DESINFECTANTE SHINY PRO TECH 20L",320,null,0]
["SHINY5409","LORD LIMPIADOR MULTIUSOS MAR FRESCO 20L",340,null,0]
["SHINY6406","LORD LIMPIADOR MULTIUSOS LAVANDA 20L",340,null,0]
["SHINY912606","JABON BEST EVER PREMIUM BERRY BLAST 4L",202,null,0]
["SHINYJABLA","JABON LIQ MANOS BEST EVER ALMENDRA 20L",592,null,0]
["SHINYJABLD","JABON LIQ MANOS BEST EVER DURAZNO 20L",592,null,0]
["SHINYJABLM","JABON LIQ MANOS BEST EVER MANZANA 20L",592,null,0]
[null,null,null,"IMPORTE:",{"$f":"SUM(E8:E345)","v":0}]
[null,null,null,"IVA:",{"$f":"(E346*16%)","v":0}]
[null,null,null,"TOTAL:",{"$f":"E346+E347","v":0}]